Cogmind - Beta 9.6 @@@ ROGUE MODE // 2020.06.28 @ 01:26:32 Player: Trione Result: Destroyed by S-27 Virus with Autogun Performance ------------- Evolutions (4) 2000 Regions Visited (18) 3600 Robots Destroyed (398) 1990 Value Destroyed (11199) 11199 Prototype IDs (42) 840 Alien Tech Used (0) 0 Bonus (3946) 3946 TOTAL SCORE: 23575 Bonus ------- High Alert Combat Kills 1887 Follower Combat Kills 261 Met Imprinter 300 Triggered Deep Caves Wall 1000 Exposed GOLEM Chamber 3000 Friendly Fire -2502 Cogmind --------- Core Integrity 0/850 Matter 148/300 Energy 116/600 System Corruption 0% Temperature Cool (12) Movement Walking (180) Ox2 Location -6/Lower Caves Parts ------- > --- POWER (1) -------- (None) > --- PROPULSION (2) --- Carbon-fiber Leg > --- UTILITY (10) ----- Large Storage Unit Large Storage Unit Large Storage Unit Large Storage Unit Large Storage Unit Energy Well Advanced Weight Redist. System Advanced Weight Redist. System Improved Signal Interpreter > --- WEAPON (2) ------- (None) > --- INVENTORY (34) --- F-cell Engine Cold Fusion Reactor Medium Treads Makeshift Leg Fusion Compressor Experimental Coolant Injector Medium Storage Unit Large Storage Unit Zionite Biocell (0) Matter Compressor (250) Experimental Targeting Computer Armor Integrity Analyzer Matter Filter Phase Shifter Improved Light Armor Plating Heavy Reflective Plating Improved System Backup Module Improved Trap Extractor GOLEM Unit Heavy Particle Gun Improved Proton Missile Launcher Rocket Array Long-range Missile Launcher Improved Datajack AD-0RF's Magmablaster Great Axe Spear Peak State ------------ > --- POWER ------------ Antimatter Reactor > --- PROPULSION ------- Heavy Treads > --- UTILITY ---------- Assembled Nanovents Assembled Nanovents Assembled Biocell Array Assembled Suspension Frame Advanced Signal Interpreter Assembled Alloy Armor GOLEM Unit > --- WEAPON ----------- Light EM Pulse Cannon Makeshift Axe > --- INVENTORY -------- 0b10 Alert Chip Layered Heavy Armor Plating Long-range Missile Launcher [Rating: 90] Favorites ----------- Power Light Nuclear Core Engine Ion Engine Power Core Light Nuclear Core Reactor Antimatter Reactor Propulsion Wheel Treads Heavy Treads Leg Carbon-fiber Leg Wheel Wheel Hover Unit Zionite Glidesys I Utility Large Storage Unit Device Long-range Sensor Array Storage Large Storage Unit Processor Advanced Signal Interpreter Hackware Hacking Suite Protection Hardened Heavy Armor Plating Weapon Gauss Rifle Energy Gun Force Rifle Energy Cannon Light EM Pulse Cannon Ballistic Gun Gauss Rifle Launcher Proton Missile Launcher Special Weapon AD-0RF's Magmablaster Slashing Weapon Katana Piercing Weapon Spear Special Melee Weapon Improved Datajack Build | -11 -10 -10 -10 -9 -8 -7 -7 -7 -7 -7 -7 -7 -6 -6 -6 -6 -6 -6 ------- Run | Scr Mat Min Exi Min Mat Fac Was Fac Low Low Zio Dee Pro Fac Was Fac Low Low Slots Evolved 8 | . . . . . 4 2 . . . . . . . 2 . . . . Power . | . . . . . . . . . . . . . . . . . . . Propulsion . | . . . . . . . . . . . . . . . . . . . Utility 8 | . . . . . 4 2 . . . . . . . 2 . . . . Weapon . | . . . . . . . . . . . . . . . . . . . Parts Attached 593 | 8 16 4 2 2 84 62 10 62 15 8 60 64 2 43 . 130 9 12 Power 23 | 1 . . . . 6 2 . 2 . . 3 4 . . . 4 . 1 Engine 10 | 1 . . . . 5 . . . . . 1 1 . . . 1 . 1 Core 7 | . . . . . 1 2 . 2 . . 1 . . . . 1 . . Reactor 6 | . . . . . . . . . . . 1 3 . . . 2 . . Propulsion 70 | 4 8 4 . . 15 4 . 6 . . 5 3 . 2 . 17 1 1 Treads 24 | 2 2 2 . . 9 . . . . . 2 2 . . . 4 1 . Leg 1 | . . . . . . . . . . . . . . . . . . 1 Wheel 44 | 2 6 2 . . 6 4 . 6 . . 3 . . 2 . 13 . . Hover 1 | . . . . . . . . . . . . 1 . . . . . . Flight . | . . . . . . . . . . . . . . . . . . . Utility 265 | 1 2 . 2 . 16 27 5 31 7 5 34 38 2 22 . 60 5 8 Device 141 | . . . . . 1 18 1 20 6 3 16 19 2 12 . 35 3 5 Storage 44 | 1 2 . 2 . 5 2 2 3 . . 4 10 . 1 . 8 1 3 Processor 11 | . . . . . . 2 1 . . . 5 1 . . . 1 1 . Hackware 4 | . . . . . . 1 . . . . . . . . . 3 . . Protection 65 | . . . . . 10 4 1 8 1 2 9 8 . 9 . 13 . . Artifact . | . . . . . . . . . . . . . . . . . . . Weapon 235 | 2 6 . . 2 47 29 5 23 8 3 18 19 . 19 . 49 3 2 Energy Gun 13 | 1 1 . . . 2 . . 1 . . . 2 . . . 6 . . Energy Cannon 63 | . 2 . . 2 21 8 . 3 . 1 4 4 . 2 . 15 1 . Ballistic Gun 52 | 1 3 . . . 9 7 2 10 1 . 7 1 . 3 . 7 1 . Ballistic Cannon . | . . . . . . . . . . . . . . . . . . . Launcher 34 | . . . . . 11 2 . . 3 1 2 6 . 1 . 6 . 2 Special Weapon 15 | . . . . . . . . . . . 1 . . 4 . 9 1 . Impact Weapon . | . . . . . . . . . . . . . . . . . . . Slashing Weapon 42 | . . . . . 4 9 2 7 3 1 2 3 . 5 . 6 . . Piercing Weapon 10 | . . . . . . 2 1 2 1 . . 2 . 2 . . . . Special Melee Weapon 6 | . . . . . . 1 . . . . 2 1 . 2 . . . . Unidentified Prototypes 34 | . . . . . 6 1 . . . . 11 10 . . . 6 . . Parts Lost 66 | . 1 . . . 11 3 . 1 . . 5 1 . 3 4 26 1 10 Power 8 | . . . . . 4 1 . . . . . . . . . 2 . 1 Propulsion 19 | . 1 . . . 3 1 . . . . 2 1 . . 1 7 1 2 Utility 23 | . . . . . . 1 . . . . 2 . . 3 3 11 . 3 Weapon 16 | . . . . . 4 . . 1 . . 1 . . . . 6 . 4 Highest Loss Streak 9 | . 1 . . . 2 2 . 1 . . 4 1 . 3 2 8 1 9 Average Slot Usage (%) 87 | . 96 100 95 85 78 92 84 93 93 91 88 81 84 89 75 89 92 98 Engine 1 | . 14 14 14 14 8 1 . . . . . . . . . . . . Core 3 | . . . . . . 5 7 7 7 7 5 . . . . 4 . . Reactor 1 | . . . . . . . . . . . 1 6 7 6 6 1 6 5 Treads 2 | . 9 1 . . 11 . . . . . 1 6 7 . . . . 6 Wheel 11 | . 18 26 28 28 6 14 15 15 15 15 12 . . 10 9 11 10 5 Device 8 | . . . . . 2 8 7 12 9 6 5 8 7 14 9 12 24 20 Storage 26 | . 24 28 23 14 22 29 23 28 30 30 27 21 30 26 26 31 39 39 Processor 6 | . . . . . . 6 7 7 7 7 12 7 7 6 2 4 1 6 Protection 6 | . . . . . 9 6 6 4 5 6 5 12 7 9 6 6 . . Energy Cannon 3 | . 9 . . 8 12 5 . . . . . 5 7 4 . 6 1 4 Ballistic Gun 3 | . 11 28 28 19 3 1 2 6 2 7 6 . 7 . . 2 1 6 Slashing Weapon 4 | . . . . . 1 5 6 6 5 6 4 4 . 4 6 1 4 . Piercing Weapon 1 | . . . . . . . 5 1 4 . . . . 1 6 . . . Naked Turns . | . . . . . . . . . . . . . . . . . . . Heaviest Build 150 | 12 45 41 89 93 149 150 105 122 100 122 110 112 110 135 132 146 116 121 Greatest Support 79 | 40 40 20 20 20 53 29 29 29 29 29 79 70 70 70 29 70 35 42 Greatest Overweight (x) 34 | . 2 2 4 4 13 7 34 6 4 6 10 1 1 6 12 14 11 12 Average Overweight (x) 4 | . . 2 2 4 4 3 22 3 3 4 3 . 1 4 6 5 4 9 Largest Inventory Capacity 50 | 6 16 16 24 24 50 48 28 28 28 28 28 28 28 28 28 34 34 34 Average Capacity 26 | 4 13 16 17 24 33 28 22 27 28 28 26 20 28 28 28 32 34 34 Most Carried 34 | 5 14 13 17 19 33 33 28 28 28 28 28 28 28 28 28 34 34 34 Average Carried 24 | 2 9 13 12 17 26 27 22 25 27 27 25 18 28 26 28 31 33 33 Final Capacity 36 | 6 16 16 24 24 36 22 22 28 28 28 28 28 28 28 28 34 34 34 Final Carried 34 | 5 13 13 17 19 33 22 22 28 28 28 28 28 28 28 28 28 34 29 Class Distribution -------------------- 63% | Hauler-Mutant 31% | Scavenger-Mutant 4% | Mutant Dominant Class ---------------- Mutant | -10/Materials Mutant | -10/Mines Mutant | -10/Exiles Hauler-Mutant | -9/Mines Hauler-Mutant | -8/Materials Hauler-Mutant | -7/Factory Scavenger-Mutant | -7/Waste Hauler-Mutant | -7/Factory Hauler-Mutant | -7/Lower Caves Hauler-Mutant | -7/Lower Caves Hauler-Mutant | -7/Zion Scavenger-Mutant | -7/Deep Caves Hauler-Mutant | -6/Proximity Caves Hauler-Mutant | -6/Factory Hauler-Mutant | -6/Waste Hauler-Mutant | -6/Factory Hauler-Mutant | -6/Lower Caves Hauler-Mutant | -6/Lower Caves Resources | -11 -10 -10 -10 -9 -8 -7 -7 -7 -7 -7 -7 -7 -6 -6 -6 -6 -6 -6 ----------- Run | Scr Mat Min Exi Min Mat Fac Was Fac Low Low Zio Dee Pro Fac Was Fac Low Low Matter Collected 8858 | 283 151 56 32 30 1140 675 479 1177 284 95 1032 820 64 447 . 1641 424 28 Remotely 1348 | . . . . . . 50 271 601 85 . 102 80 . . . 159 . . Salvage Created 17588 | 81 490 13 . 93 3734 1292 784 1240 469 245 869 1834 75 1379 . 4351 148 491 Parts 699 | 2 29 . . 1 169 74 18 75 11 9 49 34 2 59 . 143 4 20 Haulers Intercepted 14 | . 2 . . . 5 1 . 1 . . . . . 1 . 4 . . Recyclers Shooed 8 | . . . . . . 2 . 1 . . . . . 2 . 3 . . Parts Field Recycled . | . . . . . . . . . . . . . . . . . . . Retrieved Matter . | . . . . . . . . . . . . . . . . . . . Parts Self-Destructed 12 | . . . . . . . . . 4 3 . . . . . . 2 3 Prevented 27 | . . . . . . . . . 5 1 . . 2 . . . 2 17 Kills | -11 -10 -10 -10 -9 -8 -7 -7 -7 -7 -7 -7 -7 -6 -6 -6 -6 -6 -6 ------- Run | Scr Mat Min Exi Min Mat Fac Was Fac Low Low Zio Dee Pro Fac Was Fac Low Low Combat Hostiles Destroyed 249 | . 11 1 . . 57 14 3 9 10 5 3 54 1 20 . 50 2 9 Melee 13 | . . . . . . 3 . 1 . . . 5 . 3 . 1 . . Guns 36 | . 5 1 . . 2 5 3 7 . . 2 . . 3 . 7 1 . Cannons 63 | . 4 . . . 23 3 . . . 1 . 5 . 9 . 18 . . AOE 103 | . 2 . . . 24 2 . . 8 3 . 41 . 1 . 15 . 7 Classes Destroyed 26 | 1 6 1 . . 6 1 1 . 1 . 5 3 . . . 1 . . Worker 42 | . 1 . . . 6 5 . 16 . . . . . 3 . 11 . . Builder 9 | . . . . . 3 . . 3 . . . . . . . 3 . . Tunneler 5 | . 1 . . . 3 1 . . . . . . . . . . . . Hauler 14 | . 2 . . . 5 1 . 1 . . . . . 1 . 4 . . Recycler 27 | 1 . . . . 4 5 . 5 . . . . . 1 . 11 . . Mechanic 6 | . . . . . 3 . . 1 . . . . . . . 2 . . Operator 2 | . . . . . 1 1 . . . . . . . . . . . . Watcher 16 | . 2 . . . 3 1 . 1 . . . . . 2 . 7 . . Swarmer 39 | . 5 . . . 5 1 . 3 6 . . . . 6 . 9 . 4 Grunt 85 | . 6 . . . 37 9 . . 3 4 . . . 6 . 17 . 3 Brawler 6 | . . . . . 2 . . . 1 . . . . . . 2 . 1 Duelist 6 | . . . . . . . . . . . . . . 1 . 5 . . Sentry 24 | . . . . . 9 1 . . . . . . 1 6 . 5 1 1 Hunter 11 | . . . . . 4 1 . 2 . . . . . . . 4 . . Programmer 15 | . . . . . . 2 . 4 . 1 . . . 1 . 7 . . Behemoth 2 | . . . . . . . . . . . . . . . . 1 1 . Compactor 3 | . . . . . . . 3 . . . . . . . . . . . Zionite 12 | . . . . . . . . . . . 12 . . . . . . . Z-Light 6 | . . . . . . . . . . . . 6 . . . . . . Decomposer 1 | . . . . . . . . . 1 . . . . . . . . . Packrat 1 | . . . . . . . . . 1 . . . . . . . . . Samaritan 2 | . . . . . . . . . 2 . . . . . . . . . Tinkerer 4 | . . . . . . . . . . . 4 . . . . . . . Assembler 2 | . . . . . . . . . . . . 2 . . . . . . Assembled 42 | . . 1 . . . . . . . . . 41 . . . . . . Golem 7 | . . . . . . . . . . . . 7 . . . . . . Thug 1 | . . . . . . . . . . . 1 . . . . . . . Butcher 1 | . . . . . . . . . . . 1 . . . . . . . Guerrilla 1 | . . . . . . . . . . . 1 . . . . . . . Fireman 2 | . . . . . . . . . . . 2 . . . . . . . Mutant 2 | . . . . . . . . . . . 2 . . . . . . . Best Kill Streak 37 | 1 3 1 . . 15 4 1 7 4 4 2 37 1 8 . 18 1 9 Combat Bots Only 35 | . 3 1 . . 7 3 1 3 4 4 1 35 1 8 . 9 1 9 Max Kills in Single Turn 21 | 1 2 1 . 1 3 2 1 2 2 3 1 21 1 1 . 4 1 3 Gunslinging . | . . . . . . . . . . . . . . . . . . . Exploded 21 | . 2 . . . 2 1 . . 2 3 . 21 . 1 . 2 . 3 Melee 1 | . . . . . . 1 . 1 . . . 1 . 1 . 1 . . Uniques/NPCs Destroyed 3 | . . . . 1 . . . . . . 2 . . . . . . . YI-UF0 (-9/Mines) Imprinter (-7/Zion) AD-0RF (-7/Zion) Combat | -11 -10 -10 -10 -9 -8 -7 -7 -7 -7 -7 -7 -7 -6 -6 -6 -6 -6 -6 -------- Run | Scr Mat Min Exi Min Mat Fac Was Fac Low Low Zio Dee Pro Fac Was Fac Low Low Damage Taken 16884 | . 287 59 . . 3887 856 1 389 270 73 1220 1328 197 1313 415 5277 289 1023 Core 1614 | . 38 . . . 372 38 . 1 . . 267 34 5 134 . 539 38 148 Absorbed by Shields 797 | . . . . . . . . . . . . . . . . 401 206 190 Reduced by Siege Mode 148 | . . . . . . . . . . . 23 68 14 24 . 19 . . Core Remaining (%) 66 | 100 . . . 84 32 . . . . . . . 50 . . . . . Volleys Fired 812 | 1 37 3 . 2 154 55 28 53 14 5 90 58 6 60 . 221 8 17 Largest 2 | 2 2 2 . 2 2 2 2 2 1 1 2 2 2 2 . 2 2 2 Hottest 310 | 60 112 40 . 112 131 131 56 63 39 56 220 220 84 276 . 310 220 105 Shots Fired 1176 | 2 57 6 . 4 217 85 54 78 14 5 120 63 12 74 . 352 14 19 Gun 430 | 2 20 6 . . 35 36 54 68 . . 83 . 6 13 . 99 6 2 Cannon 565 | . 37 . . 4 151 48 . 10 . 2 7 40 6 52 . 200 6 2 Launcher 127 | . . . . . 31 1 . . 14 3 20 18 . 1 . 24 . 15 Special 54 | . . . . . . . . . . . 10 5 . 8 . 29 2 . Kinetic 349 | 1 7 6 . . 35 36 54 68 . . 83 . 6 13 . 32 6 2 Thermal 335 | 1 4 . . . 25 8 . . . . 10 5 . 16 . 264 2 . Explosive 47 | . . . . . 13 . . . 6 . . 10 . 1 . 17 . . Electromagnetic 445 | . 46 . . 4 144 41 . 10 8 5 27 48 6 44 . 39 6 17 Robot Hit Streak 37 | 2 12 2 . 5 21 7 8 12 2 2 12 15 6 37 . 19 8 8 Robot Miss Streak 6 | . 6 2 . . 6 4 2 3 2 1 4 3 1 4 . 5 3 5 Penetration Max 1 | . . . . . 1 1 . 1 . . . . . 1 . . . . Secondary Targets 1 | . . . . . . . 1 . . . . . . . . . . . Max Gunslinging Chain 1 | . . . . . . . 1 . . . . . . . . . . . Shots Hit Robots 858 | 2 35 3 . 4 147 75 34 70 12 3 84 70 10 83 . 213 8 5 Core Hits 690 | 1 19 2 . 1 119 40 17 42 14 7 41 140 2 42 . 179 3 21 Critical Hits 22 | . 1 . . . 5 1 1 3 . . 2 2 . 2 . 5 . . Critical Kills 8 | . . . . . 1 . . 2 . . . 2 . 2 . 1 . . Critical Parts Destroyed 14 | . 1 . . . 4 1 1 1 . . 2 . . . . 4 . . Melee Attacks 557 | . . . . . 15 81 8 104 19 2 164 53 . 32 33 29 17 . Impact . | . . . . . . . . . . . . . . . . . . . Slashing 428 | . . . . . 15 63 8 95 11 2 158 14 . 14 7 24 17 . Piercing 119 | . . . . . . 17 . 9 8 . . 39 . 15 26 5 . . Sneak Attacks 63 | . . . . . 2 9 . 16 7 . 17 . . 8 . 4 . . Combat Hostiles 1 | . . . . . . . . . . . . . . 1 . . . . Follow-up Attacks 5 | . . . . . . 3 . . . . . . . 1 . 1 . . Damage Inflicted 40533 | 27 906 42 . 76 7440 2668 920 3498 1664 364 2960 5312 203 2365 . 10909 242 937 Guns 6142 | 27 178 42 . . 397 528 920 1010 . . 1073 . 106 219 . 1548 46 48 Cannons 10240 | . 605 . . 76 2747 780 . 205 . 4 84 630 97 948 . 3886 107 71 Explosions 14757 | . 123 . . . 4009 201 . 515 995 360 493 3246 . 101 . 3896 . 818 Melee 7583 | . . . . . 268 1159 . 1768 669 . 1180 1267 . 793 . 479 . . Ramming 36 | . . . . . 19 . . . . . . . . . . 17 . . Kinetic 4946 | 15 72 42 . . 397 528 920 1010 . . 1073 . 106 219 . 470 46 48 Thermal 9279 | 12 155 . . . 1732 133 . 265 . 127 130 422 . 409 . 5805 89 . Explosive 6989 | . . . . . 946 . . . 721 . . 2424 . 101 . 2797 . . Electromagnetic 11700 | . 679 . . 76 4078 848 . 455 274 237 577 1199 97 843 . 1341 107 889 Impact . | . . . . . . . . . . . . . . . . . . . Slashing 4301 | . . . . . 268 693 . 1248 289 . 1180 55 . 278 . 290 . . Piercing 3282 | . . . . . . 466 . 520 380 . . 1212 . 515 . 189 . . Highest Corruption 24 | . 2 2 2 2 2 . 24 1 1 . . . . . . 14 10 . Average Corruption 7 | . 2 2 2 2 1 . 12 1 1 . . . . . . 2 4 . Corruption Purged 57 | . . . . . . . 37 . 1 . . . . . . 9 10 . Effects 336 | . 2 4 2 3 13 . 255 1 . . . . . . . 41 15 . Message Errors 93 | . 1 2 1 2 2 . 68 . . . . . . . . 15 2 . Matter Fused 63 | . . . . . . . 55 . . . . . . . . 1 7 . Heat Flow Errors 46 | . 1 2 1 1 . . 38 . . . . . . . . 3 . . Energy Discharges 27 | . . . . . 2 . 20 . . . . . . . . 3 2 . Parts Rejected 1 | . . . . . . . 1 . . . . . . . . . . . Data Loss (minor) 46 | . . . . . 7 . 31 1 . . . . . . . 5 2 . Data Loss (major) 12 | . . . . . . . 10 . . . . . . . . 2 . . Misfires 3 | . . . . . . . 2 . . . . . . . . 1 . . Alerts 11 | . . . . . . . 10 . . . . . . . . . 1 . Misdirections 14 | . . . . . . . 11 . . . . . . . . 2 1 . Targeting Errors 16 | . . . . . 2 . 7 . . . . . . . . 7 . . Weapon Failures 4 | . . . . . . . 2 . . . . . . . . 2 . . Overload Shots . | . . . . . . . . . . . . . . . . . . . Overflow Damage 2407 | . 12 . . . 173 323 . 332 413 . 210 171 . 33 . 740 . . Projectiles 295 | . 12 . . . 6 10 . 11 . . . 44 . . . 212 . . Explosions 645 | . . . . . 117 1 . 145 47 . 13 54 . . . 268 . . Melee 1467 | . . . . . 50 312 . 176 366 . 197 73 . 33 . 260 . . Knockbacks . | . . . . . . . . . . . . . . . . . . . Impact . | . . . . . . . . . . . . . . . . . . . Kinetic . | . . . . . . . . . . . . . . . . . . . Secondary . | . . . . . . . . . . . . . . . . . . . Self-Inflicted Damage 636 | . 28 . . . 310 . . . 47 . . 45 . . . 197 . 9 Shots 28 | . 1 . . . 13 . . . 2 . . 3 . . . 8 . 1 Rammed 3 | . . . . . 1 . . . . . . . . . . 2 . . Targets Rammed 3 | . . . . . 1 . . . . . . . . . . 2 . . Kicked . | . . . . . . . . . . . . . . . . . . . Crushed . | . . . . . . . . . . . . . . . . . . . Highest Temperature 849 | . 234 241 221 194 420 313 305 154 24 68 849 325 306 318 . 354 192 . Average Temperature 105 | . 77 103 111 76 112 106 106 45 8 30 204 125 154 90 . 89 43 . Received Heat Transfer 5206 | . 54 . . . 1485 294 . . 9 36 1227 449 84 426 . 1000 60 82 Effects 30 | . . . . . 3 1 4 . . . 21 . . . . 1 . . Energy Bleed 7 | . . . . . 1 . . . . . 5 . . . . 1 . . Interference 10 | . . . . . 1 1 4 . . . 4 . . . . . . . Short Circuit 1 | . . . . . . . . . . . 1 . . . . . . . Damage (minor) 5 | . . . . . 1 . . . . . 4 . . . . . . . Damage (major) 5 | . . . . . . . . . . . 5 . . . . . . . Damage (core) 2 | . . . . . . . . . . . 2 . . . . . . . Siege Activations 9 | . . . . . . . . . . . 2 3 1 1 . 2 . . Total Turns 246 | . . . . . . . . . . . 62 63 14 57 . 50 . . Longest Duration 57 | . . . . . . . . . . . 43 25 14 57 . 31 . . Robots Corrupted 30 | . . . . . 10 2 . 1 2 1 1 3 1 2 . 5 . 2 Combat Hostiles 27 | . . . . . 8 1 . 1 2 1 1 3 1 2 . 5 . 2 Parts Fried 84 | . 5 . . . 30 5 . 1 1 . 6 17 1 6 . 8 1 3 Impact Corruptions . | . . . . . . . . . . . . . . . . . . . Robots Melted 9 | . . . . . . . . . . . 1 . . 2 . 5 1 . Combat Hostiles 7 | . . . . . . . . . . . . . . 2 . 4 1 . Parts Melted 61 | . 1 . . . . . . . . . 3 1 . 5 . 49 2 . Heat Transferred 20243 | 25 275 . . . 2203 222 . 100 . 100 800 1240 . 1988 . 12810 480 . Parts Sabotaged 1 | . . . . . . . . . . . . . . . . 1 . . Parts Stolen . | . . . . . . . . . . . . . . . . . . . Parts Stripped . | . . . . . . . . . . . . . . . . . . . Power Chain Reactions 34 | . 2 . . . 21 . . 2 1 3 2 2 . . . 1 . . Missiles Intercepted . | . . . . . . . . . . . . . . . . . . . Alert | -11 -10 -10 -10 -9 -8 -7 -7 -7 -7 -7 -7 -7 -6 -6 -6 -6 -6 -6 ------- Run | Scr Mat Min Exi Min Mat Fac Was Fac Low Low Zio Dee Pro Fac Was Fac Low Low Peak Influence 1564 | 5 266 103 . . 1292 870 333 444 . . . . . 305 90 1564 . . Average Influence 305 | . 93 103 . . 629 621 22 155 . . . . . 196 51 616 . . Maximum Alert Level 4 | . 1 . . . 4 3 1 2 . . . . . 1 . 4 . . Low Security (%) 49 | 100 87 100 . 100 12 . 94 52 . . . . . 31 100 6 . . Level 1 22 | . 12 . . . 20 10 5 42 . . . . . 68 . 48 . . Level 2 12 | . . . . . 21 61 . 5 . . . . . . . 10 . . Level 3 11 | . . . . . 37 28 . . . . . . . . . 18 . . Level 4 3 | . . . . . 9 . . . . . . . . . . 15 . . Level 5 . | . . . . . . . . . . . . . . . . . . . High Security . | . . . . . . . . . . . . . . . . . . . Max Security . | . . . . . . . . . . . . . . . . . . . Squads Dispatched 49 | . 2 . . . 13 4 . 7 . . . . . 8 . 14 . 1 Investigation 10 | . 1 . . . 2 2 . 1 . . . . . 1 . 3 . . Extermination 11 | . . . . . . 2 . 4 . . . . . 1 . 4 . . Reinforcement 13 | . 1 . . . 7 . . 1 . . . . . . . 4 . . Assault 7 | . . . . . 3 . . . . . . . . . . 3 . 1 Garrison 8 | . . . . . 1 . . 1 . . . . . 6 . . . . Intercept . | . . . . . . . . . . . . . . . . . . . Construction Impeded 3 | . . . . . 3 . . . . . . . . . . . . . Haulers Reinforced 3 | . . . . . . . . . . . . . . . . 3 . . Stealth | -11 -10 -10 -10 -9 -8 -7 -7 -7 -7 -7 -7 -7 -6 -6 -6 -6 -6 -6 --------- Run | Scr Mat Min Exi Min Mat Fac Was Fac Low Low Zio Dee Pro Fac Was Fac Low Low Distress Signals 13 | . 1 . . . 6 2 . 1 . . . . . . . 3 . . Communications Jammed . | . . . . . . . . . . . . . . . . . . . Distress Signals . | . . . . . . . . . . . . . . . . . . . Times Spotted 432 | . 20 6 . . 118 32 7 18 9 5 27 50 1 25 8 85 2 19 Peak Tracking Total 37 | . 5 8 . . 7 6 3 3 3 4 3 37 1 6 5 10 1 12 Tactical Retreats 49 | . 3 . . . 22 2 1 1 2 . 3 1 . 1 2 9 . 2 Traps | -11 -10 -10 -10 -9 -8 -7 -7 -7 -7 -7 -7 -7 -6 -6 -6 -6 -6 -6 ------- Run | Scr Mat Min Exi Min Mat Fac Was Fac Low Low Zio Dee Pro Fac Was Fac Low Low Traps Triggered 17 | . 4 . . . 1 4 . 3 . . . . . 3 . 2 . . Indirectly 1 | . . . . . . . . . . . . . . . . 1 . . Trap Hack Attempts . | . . . . . . . . . . . . . . . . . . . Triggered . | . . . . . . . . . . . . . . . . . . . Disarmed . | . . . . . . . . . . . . . . . . . . . Reprogrammed . | . . . . . . . . . . . . . . . . . . . Reused . | . . . . . . . . . . . . . . . . . . . Traps Extracted . | . . . . . . . . . . . . . . . . . . . Installed . | . . . . . . . . . . . . . . . . . . . Triggered 9 | . . . . 1 2 . . . 2 . . . . . . 4 . . Machines | -11 -10 -10 -10 -9 -8 -7 -7 -7 -7 -7 -7 -7 -6 -6 -6 -6 -6 -6 ---------- Run | Scr Mat Min Exi Min Mat Fac Was Fac Low Low Zio Dee Pro Fac Was Fac Low Low Machines Disabled 52 | . . . . . 10 7 . 19 . . . 1 . . . 15 . . Max in Single Turn 5 | . . . . . 2 2 . 5 . . . 1 . . . 5 . . Garrison Access 6 | . . . . . 1 3 . 1 . . . . . . . 1 . . Machines Sabotaged . | . . . . . . . . . . . . . . . . . . . Garrisons Compromised . | . . . . . . . . . . . . . . . . . . . Overloaded Fab Kills . | . . . . . . . . . . . . . . . . . . . Fab Network Shutdowns . | . . . . . . . . . . . . . . . . . . . Hacking | -11 -10 -10 -10 -9 -8 -7 -7 -7 -7 -7 -7 -7 -6 -6 -6 -6 -6 -6 --------- Run | Scr Mat Min Exi Min Mat Fac Was Fac Low Low Zio Dee Pro Fac Was Fac Low Low Machines Accessed 77 | . 7 . 1 . 10 17 . 10 1 1 . . . 9 . 21 . . Terminals 42 | . 5 . . . 7 7 . 8 . . . . . 5 . 10 . . Fabricators 5 | . . . . . . 2 . . . . . . . . . 3 . . Repair Stations 10 | . . . . . 2 2 . . . . . . . 2 . 4 . . Recycling Units 7 | . 2 . . . . 2 . 1 . . . . . . . 2 . . Scanalyzers 3 | . . . . . . 1 . . . . . . . 1 . 1 . . Garrison Access 7 | . . . . . 1 3 . 1 . . . . . 1 . 1 . . Total Hacks 175 | . 21 . 1 . 24 38 . 21 1 1 . . . 21 . 47 . . Successful 106 | . 15 . 1 . 15 25 . 11 1 1 . . . 13 . 24 . . Failed 69 | . 6 . . . 9 13 . 10 . . . . . 8 . 23 . . Catastrophic 10 | . . . . . 3 1 . 2 . . . . . 1 . 3 . . Database Lockouts . | . . . . . . . . . . . . . . . . . . . Manual 91 | . 17 . . . 18 14 . 15 . . 5 . . 10 . 12 . . Terminals 91 | . 17 . . . 18 12 . 17 . . . . . 12 . 15 . . Fabricators 12 | . . . . . . 5 . . . . . . . . . 7 . . Repair Stations 24 | . . . . . 5 4 . . . . . . . 3 . 12 . . Recycling Units 14 | . 4 . . . . 6 . 1 . . . . . . . 3 . . Scanalyzers 16 | . . . . . . 7 . . . . . . . 4 . 5 . . Garrison Access 15 | . . . . . 1 4 . 3 . . . . . 2 . 5 . . Terminal Hacks 23 | . 3 . 1 . 4 3 . 3 1 1 . . . 3 . 4 . . Record 1 | . . . 1 . . . . . . . . . . . . . . . Part Schematic 2 | . . . . . . 1 . . . . . . . 1 . . . . Open Door 2 | . . . . . . . . . 1 1 . . . . . . . . Branch Access Points 1 | . . . . . . . . . . . . . . . . 1 . . Terminal Index 6 | . 1 . . . 1 1 . 1 . . . . . 1 . 1 . . Fabricator Index 1 | . . . . . . . . . . . . . . . . 1 . . Unreport Threat 1 | . . . . . . . . 1 . . . . . . . . . . Locate Traps 2 | . . . . . . . . 1 . . . . . 1 . . . . Recall Investigation 1 | . . . . . . . . . . . . . . . . 1 . . Zone Layout 6 | . 2 . . . 3 1 . . . . . . . . . . . . Fabricator Hacks 7 | . . . . . . 3 . . . . . . . . . 4 . . Load Schematic 4 | . . . . . . 2 . . . . . . . . . 2 . . Build 3 | . . . . . . 1 . . . . . . . . . 2 . . Repair Station Hacks 15 | . . . . . 4 2 . . . . . . . 2 . 7 . . Scan Component 10 | . . . . . 2 2 . . . . . . . 2 . 4 . . Repair 5 | . . . . . 2 . . . . . . . . . . 3 . . Recycling Unit Hacks 6 | . 2 . . . . 2 . 1 . . . . . . . 1 . . Retrieve Components 6 | . 2 . . . . 2 . 1 . . . . . . . 1 . . Scanalyzer 14 | . . . . . . 7 . . . . . . . 4 . 3 . . Insert Component 7 | . . . . . . 3 . . . . . . . 2 . 2 . . Analyze 7 | . . . . . . 4 . . . . . . . 2 . 1 . . Garrison Access Hacks 4 | . . . . . 1 2 . 1 . . . . . . . . . . Seal Access 4 | . . . . . 1 2 . 1 . . . . . . . . . . Unauthorized Hacks 37 | . 10 . . . 6 6 . 6 . . . . . 4 . 5 . . Terminals 34 | . 10 . . . 6 4 . 6 . . . . . 4 . 4 . . Track 15 | . 4 . . . 5 2 . 2 . . . . . . . 2 . . Assimilate 3 | . 1 . . . . 1 . . . . . . . 1 . . . . Botnet 13 | . 3 . . . 1 1 . 3 . . . . . 3 . 2 . . Operators 3 | . 2 . . . . . . 1 . . . . . . . . . . Fabricators . | . . . . . . . . . . . . . . . . . . . Repair Stations . | . . . . . . . . . . . . . . . . . . . Recycling Units 1 | . . . . . . 1 . . . . . . . . . . . . Reject 1 | . . . . . . 1 . . . . . . . . . . . . Scanalyzers . | . . . . . . . . . . . . . . . . . . . Garrison Access 2 | . . . . . . 1 . . . . . . . . . 1 . . Jam 2 | . . . . . . 1 . . . . . . . . . 1 . . Data Cores Recovered . | . . . . . . . . . . . . . . . . . . . Used . | . . . . . . . . . . . . . . . . . . . Hacking Detections 58 | . 6 . . . 9 11 . 7 . . . . . 7 . 18 . . Full Trace Events 5 | . . . . . 1 1 . . . . . . . 1 . 2 . . Feedback Events . | . . . . . . . . . . . . . . . . . . . Feedback Blocked . | . . . . . . . . . . . . . . . . . . . Robot Schematics Acquired . | . . . . . . . . . . . . . . . . . . . Robots Built . | . . . . . . . . . . . . . . . . . . . Matter . | . . . . . . . . . . . . . . . . . . . Time . | . . . . . . . . . . . . . . . . . . . Total Robot Build Rating . | . . . . . . . . . . . . . . . . . . . Part Schematics Acquired 8 | . . . . . . 4 . . . . . . . 3 . 1 . . Parts Built 3 | . . . . . . 1 . . . . . . . . . 2 . . Matter 643 | . . . . . . 190 . . . . . . . . . 453 . . Time 139 | . . . . . . 47 . . . . . . . . . 92 . . Total Part Build Rating 14 | . . . . . . 5 . . . . . . . . . 9 . . Parts Repaired 5 | . . . . . 2 . . . . . . . . . . 3 . . Time 184 | . . . . . 88 . . . . . . . . . . 96 . . Parts Recycled . | . . . . . . . . . . . . . . . . . . . Recycled Matter . | . . . . . . . . . . . . . . . . . . . Retrieved Matter . | . . . . . . . . . . . . . . . . . . . Retrieved Components 24 | . 12 . . . . 10 . 2 . . . . . . . . . . Parts Scanalyzed 7 | . . . . . . 3 . . . . . . . 2 . 2 . . Part Schematics Acquired 6 | . . . . . . 3 . . . . . . . 2 . 1 . . Parts Damaged . | . . . . . . . . . . . . . . . . . . . Bothacking | -11 -10 -10 -10 -9 -8 -7 -7 -7 -7 -7 -7 -7 -6 -6 -6 -6 -6 -6 ------------ Run | Scr Mat Min Exi Min Mat Fac Was Fac Low Low Zio Dee Pro Fac Was Fac Low Low Used RIF Installer . | . . . . . . . . . . . . . . . . . . . Robots Hacked 9 | . . . . . . 1 . . . . 6 . . 2 . . . . Non-combat 3 | . . . . . . 1 . . . . . . . 2 . . . . Combat 6 | . . . . . . . . . . . 6 . . . . . . . Robot Hacks Applied 9 | . . . . . . 1 . . . . 6 . . 2 . . . . parse_system 6 | . . . . . . . . . . . 6 . . . . . . . find_chute 3 | . . . . . . 1 . . . . . . . 2 . . . . Relay Couplers Released 8 | . . . . . . . . 4 . . . . . . . 4 . . Programmers 8 | . . . . . . . . 4 . . . . . . . 4 . . Robots Rewired 1 | . . . . . . . . . . . . . . 1 . . . . Allies Hacked . | . . . . . . . . . . . . . . . . . . . Hacks Repelled . | . . . . . . . . . . . . . . . . . . . Allies | -11 -10 -10 -10 -9 -8 -7 -7 -7 -7 -7 -7 -7 -6 -6 -6 -6 -6 -6 -------- Run | Scr Mat Min Exi Min Mat Fac Was Fac Low Low Zio Dee Pro Fac Was Fac Low Low Total Allies 32 | . . . . 3 . 1 19 . . . 7 . . 1 1 . . . Largest Group 19 | . . . . 3 3 1 19 . . . 7 . . 1 1 . . . Highest-Rated Group 477 | . . . . 40 40 26 477 . . . 337 . . 30 31 . . . Highest-Rated Ally 94 | . . . . 16 16 26 35 . . . 94 . . 30 31 . . . Total Orders 9 | . . . . 2 1 5 . . . . . . . . 1 . . . STAY 2 | . . . . 1 . 1 . . . . . . . . . . . . GOTO 4 | . . . . . 1 3 . . . . . . . . . . . . FOLLOW 2 | . . . . 1 . 1 . . . . . . . . . . . . EXPLORE 1 | . . . . . . . . . . . . . . . 1 . . . Ally Attacks 216 | . . . . . 34 . 61 . . . 115 . . . 6 . . . Total Damage 6226 | . . . . . 319 . 2648 . . . 3154 . . . 105 . . . Kills 38 | . . . . . 2 . 11 . . . 25 . . . . . . . Allies Corrupted 11 | . . . . . . . 11 . . . . . . . . . . . Allies Melted 2 | . . . . . . . . . . . 2 . . . . . . . Intel | -11 -10 -10 -10 -9 -8 -7 -7 -7 -7 -7 -7 -7 -6 -6 -6 -6 -6 -6 ------- Run | Scr Mat Min Exi Min Mat Fac Was Fac Low Low Zio Dee Pro Fac Was Fac Low Low Robot Analysis Total . | . . . . . . . . . . . . . . . . . . . Derelict Logs Recovered 4 | . . 1 . . . . . . . 2 . . . . . . 1 . Drone Launches 2 | . . . . . . . . . . . . . . . 2 . . . Drone Recoveries . | . . . . . . . . . . . . . . . . . . . Exploration | -11 -10 -10 -10 -9 -8 -7 -7 -7 -7 -7 -7 -7 -6 -6 -6 -6 -6 -6 ------------- Run | Scr Mat Min Exi Min Mat Fac Was Fac Low Low Zio Dee Pro Fac Was Fac Low Low Turns Passed 35093 | 72 768 338 219 505 3168 2859 7657 2626 1081 976 4270 3528 376 1012 204 3863 1203 368 Spaces Moved 16626 | 58 525 291 193 408 1315 1795 631 1621 843 785 2810 1671 195 470 92 1915 826 182 Core 690 | 7 . . . . . . 407 . . . 276 . . . . . . . Treads 3110 | 10 135 . . . 721 . . . . . 329 1671 195 31 . 18 . . Legs 4 | . . . . . . . . . . . . . . . . . . 4 Wheels 12822 | 41 390 291 193 408 594 1795 224 1621 843 785 2205 . . 439 92 1897 826 178 Hover . | . . . . . . . . . . . . . . . . . . . Flight . | . . . . . . . . . . . . . . . . . . . Fastest Speed 50 | 50 80 100 80 120 120 100 100 100 100 100 50 160 180 110 120 110 120 100 Average Speed 172 | 90 113 100 102 120 175 118 1165 111 115 120 120 176 180 131 143 138 130 172 Slowest Speed 1750 | 160 160 100 120 120 220 150 1750 140 120 140 180 180 180 180 200 240 190 200 Overloaded Moves . | . . . . . . . . . . . . . . . . . . . Propulsion Burnouts . | . . . . . . . . . . . . . . . . . . . Robots Hopped . | . . . . . . . . . . . . . . . . . . . Cave-ins Triggered 4 | . . . . . . . . . . . . . . . 2 2 . . Exploration Rate (%) 59 | 4 80 33 52 84 94 43 90 31 76 73 87 73 47 14 83 51 77 31 Regions Visited 18 Branch Regions 10 Pre-discovered Areas 2 | . . . 1 . . . . . . 1 . . . . . . . . Known Exits Taken 8 | . . . . . . . . 1 1 1 1 1 1 . . 1 1 . Unknown Exits Taken 6 | 1 1 1 1 1 1 . . . . . . . . . . . . . Scrap Searched 21 | . . 1 . 3 . . . . 3 3 2 . 1 . . . 6 2 Spaces Dug 299 | . . . . . 20 46 8 68 17 2 4 18 . 7 23 69 17 . Terrain Destroyed 846 | . 6 . . . 143 46 10 86 85 8 4 108 1 12 23 296 18 . Melee 229 | . . . . . 9 46 8 68 7 2 4 18 . 7 23 20 17 . Projectile 69 | . . . . . . . 2 1 . . . . 1 1 . 63 1 . AOE 548 | . 6 . . . 134 . . 17 78 6 . 90 . 4 . 213 . . Actions | -11 -10 -10 -10 -9 -8 -7 -7 -7 -7 -7 -7 -7 -6 -6 -6 -6 -6 -6 --------- Run | Scr Mat Min Exi Min Mat Fac Was Fac Low Low Zio Dee Pro Fac Was Fac Low Low Total 21050 | 71 631 330 217 418 1920 2312 872 2208 905 814 3411 2103 207 732 123 2659 905 212 Wait 1924 | . 44 33 . 5 276 273 178 311 10 . 207 149 5 118 2 280 33 . Move 16608 | 57 524 290 192 407 1314 1795 630 1620 842 784 2809 1670 194 470 89 1914 825 182 Hop . | . . . . . . . . . . . . . . . . . . . Pick Up 255 | 5 9 . 16 2 40 18 6 14 1 6 31 49 . 8 . 41 9 . Fast Attach 112 | 6 4 . 2 . 8 6 2 8 2 1 29 20 . 1 . 21 2 . Attach 139 | . 1 . . . 23 10 3 20 1 4 18 11 . 7 . 33 3 5 Detach 96 | . . . . . 10 4 4 16 2 2 19 23 . 1 . 14 1 . Swap 344 | 2 11 4 . 2 53 46 5 34 12 3 15 33 2 35 . 76 4 7 Drop 204 | . 1 . 7 . 26 29 8 22 3 7 29 37 . 2 . 29 3 1 Fire 812 | 1 37 3 . 2 154 55 28 53 14 5 90 58 6 60 . 221 8 17 Melee 542 | . . . . . 15 76 8 102 18 2 164 53 . 30 29 28 17 . Ram 2 | . . . . . . . . . . . . . . . . 2 . . Kick . | . . . . . . . . . . . . . . . . . . . Crush 1 | . . . . . 1 . . . . . . . . . . . . . Escape Stasis 10 | . . . . . . . . 8 . . . . . . 2 . . . Rewire . | . . . . . . . . . . . . . . . . . . . Trap . | . . . . . . . . . . . . . . . . . . . Miscellaneous 1 | . . . . . . . . . . . . . . . 1 . . . Route ------- -11/Scrapyard -10/Materials (discovered 3 exits: [*Mat x2] / [*Min]) -10/Mines -10/Exiles -9/Mines (discovered 2 exits: *Mat x2) -8/Materials (discovered 5 exits: *Fac x3 / [*Sto x2]) -7/Factory (discovered 3 exits: *Fac x2 / *Low) -7/Waste -7/Factory (discovered 3 exits: *Fac x2 / *Low) -7/Lower Caves -7/Lower Caves -7/Zion (discovered 2 exits: *Dee / *Pro) -7/Deep Caves -6/Proximity Caves -6/Factory -6/Waste -6/Factory (discovered 6 exits: *Fac x2 / *Low x2 / *Ext x2) -6/Lower Caves -6/Lower Caves (discovered 1 exit: *Fac) History --------- Turn | Location | Event 21 | -11/Scrapyard | Discovered new exit (range 14) 73 | -11/Scrapyard | Entered Materials 303 | -10/Materials | Build established: Mutant 304 | -10/Materials | Discovered new exit (range 13) 339 | -10/Materials | Discovered new exit (range 10) 523 | -10/Materials | Discovered new exit (range 8) 841 | -10/Materials | Entered Mines 842 | -10/Mines | Assembled infested the area 844 | -10/Mines | Learned Materials stockpile data 878 | -10/Mines | Met 8R-AWN 1172 | -10/Mines | Discovered new exit (range 5) 1179 | -10/Mines | Entered Exiles 1233 | -10/Exiles | Welcomed by 8R-AWN 1249 | -10/Exiles | Met EX-HEX 1276 | -10/Exiles | Met EX-BIN 1287 | -10/Exiles | Met EX-DEC 1294 | -10/Exiles | Learned location of Zion (-7) 1388 | -10/Exiles | Discovered new exit (range 10) 1398 | -10/Exiles | Entered Mines 1620 | -9/Mines | Discovered new exit (range 12) 1624 | -9/Mines | Build established: Hauler-Mutant 1696 | -9/Mines | Assisted by bots powering up and referring to "LRC-V3" 1742 | -9/Mines | Discovered new exit (range 16) 1752 | -9/Mines | Destroyed YI-UF0 1903 | -9/Mines | Entered Materials 1903 | -8/Materials | Accompanied by 3 allies 1903 | -8/Materials | Evolved 4 slots: Utility x4 1972 | -8/Materials | Garrison activated, responded to threat 2058 | -8/Materials | Discovered new exit (range 15) 2629 | -8/Materials | Discovered new exit (range 5) 2670 | -8/Materials | Discovered new exit (range 16) 2892 | -8/Materials | Repaired Hrd. Heavy Armor Plating? 3402 | -8/Materials | Discovered new exit (range 16) 3503 | -8/Materials | First assault squad dispatched 3521 | -8/Materials | Repaired Hrd. Heavy Armor Plating 3957 | -8/Materials | Discovered new exit (range 10) 4783 | -8/Materials | Core integrity fell below 50% 4810 | -8/Materials | Destroyed 7 combat bots 5071 | -8/Materials | Entered Factory 5071 | -7/Factory | Evolved 2 slots: Utility x2 6025 | -7/Factory | Discovered new exit (range 15) 6041 | -7/Factory | Identified exit to Lower Caves 6191 | -7/Factory | Found Prototype Launcher 6191 | -7/Factory | Identified Rocket Array 6436 | -7/Factory | Discovered new exit (range 7) 6442 | -7/Factory | Identified exit to Factory 6715 | -7/Factory | Discovered exit to Factory (range 15) 7687 | -7/Factory | Fabricated Imp. Armor Integrity Analyzer (x1) 7930 | -7/Factory | Sucked down chute 7930 | -7/Factory | Entered Waste 7945 | -7/Waste | EMP discharged 7988 | -7/Waste | Spotted C-40 Crusher 8001 | -7/Waste | Spotted C-40 Crusher 8015 | -7/Waste | Destroyed C-40 Crusher 8023 | -7/Waste | Spotted C-40 Crusher 8045 | -7/Waste | EMP discharged 8045 | -7/Waste | System corruption reached 10% 8058 | -7/Waste | Spotted C-40 Crusher 8065 | -7/Waste | Destroyed C-40 Crusher 8071 | -7/Waste | Found Damper Plating 8075 | -7/Waste | Found Damper Plating 8142 | -7/Waste | Destroyed C-40 Crusher 8145 | -7/Waste | EMP discharged 8202 | -7/Waste | Met Warlord forces unprepared to attack 8213 | -7/Waste | Spotted C-40 Crusher 8216 | -7/Waste | Allies destroyed C-40 Crusher 8220 | -7/Waste | Allies destroyed C-40 Crusher 8237 | -7/Waste | Spotted C-40 Crusher 8245 | -7/Waste | EMP discharged 8250 | -7/Waste | Allies destroyed C-40 Crusher 8250 | -7/Waste | Discovered new exit (range 15) 8345 | -7/Waste | EMP discharged 8445 | -7/Waste | EMP discharged 8545 | -7/Waste | EMP discharged 8581 | -7/Waste | Build established: Scavenger-Mutant 8645 | -7/Waste | EMP discharged 8745 | -7/Waste | EMP discharged 8845 | -7/Waste | EMP discharged 8945 | -7/Waste | EMP discharged 9045 | -7/Waste | EMP discharged 9145 | -7/Waste | EMP discharged 9245 | -7/Waste | EMP discharged 9345 | -7/Waste | EMP discharged 9445 | -7/Waste | EMP discharged 9545 | -7/Waste | EMP discharged 9645 | -7/Waste | EMP discharged 9745 | -7/Waste | EMP discharged 9845 | -7/Waste | EMP discharged 9945 | -7/Waste | EMP discharged 10045 | -7/Waste | EMP discharged 10145 | -7/Waste | EMP discharged 10245 | -7/Waste | EMP discharged 10345 | -7/Waste | EMP discharged 10445 | -7/Waste | EMP discharged 10545 | -7/Waste | EMP discharged 10645 | -7/Waste | EMP discharged 10745 | -7/Waste | EMP discharged 10845 | -7/Waste | EMP discharged 10945 | -7/Waste | EMP discharged 11045 | -7/Waste | EMP discharged 11145 | -7/Waste | EMP discharged 11245 | -7/Waste | EMP discharged 11345 | -7/Waste | EMP discharged 11445 | -7/Waste | EMP discharged 11545 | -7/Waste | EMP discharged 11590 | -7/Waste | Identified exit to Factory 11645 | -7/Waste | EMP discharged 11745 | -7/Waste | EMP discharged 11845 | -7/Waste | EMP discharged 11945 | -7/Waste | EMP discharged 12045 | -7/Waste | EMP discharged 12145 | -7/Waste | EMP discharged 12245 | -7/Waste | EMP discharged 12345 | -7/Waste | EMP discharged 12445 | -7/Waste | EMP discharged 12545 | -7/Waste | EMP discharged 12645 | -7/Waste | EMP discharged 12745 | -7/Waste | EMP discharged 12845 | -7/Waste | EMP discharged 12945 | -7/Waste | EMP discharged 13045 | -7/Waste | EMP discharged 13145 | -7/Waste | EMP discharged 13245 | -7/Waste | EMP discharged 13345 | -7/Waste | EMP discharged 13445 | -7/Waste | EMP discharged 13545 | -7/Waste | EMP discharged 13645 | -7/Waste | EMP discharged 13745 | -7/Waste | EMP discharged 13845 | -7/Waste | EMP discharged 13945 | -7/Waste | EMP discharged 14045 | -7/Waste | EMP discharged 14145 | -7/Waste | EMP discharged 14245 | -7/Waste | EMP discharged 14345 | -7/Waste | EMP discharged 14445 | -7/Waste | EMP discharged 14545 | -7/Waste | EMP discharged 14645 | -7/Waste | EMP discharged 14745 | -7/Waste | EMP discharged 14845 | -7/Waste | EMP discharged 14945 | -7/Waste | EMP discharged 15045 | -7/Waste | EMP discharged 15145 | -7/Waste | EMP discharged 15245 | -7/Waste | EMP discharged 15345 | -7/Waste | EMP discharged 15445 | -7/Waste | EMP discharged 15545 | -7/Waste | EMP discharged 15587 | -7/Waste | Entered Factory 15882 | -7/Factory | Discovered exit to Lower Caves (range 10) 16010 | -7/Factory | Discovered exit to Factory (range 6) 16017 | -7/Factory | Build established: Hauler-Mutant 17035 | -7/Factory | Garrison activated, responded to threat 17539 | -7/Factory | Discovered exit to Factory (range 16) 18213 | -7/Factory | Entered Lower Caves 18214 | -7/Lower Caves | Encountered a Warlord checkpoint 19157 | -7/Lower Caves | Discovered new exit (range 15) 19256 | -7/Lower Caves | Identified exit to Lower Caves 19294 | -7/Lower Caves | Entered another Lower Caves area 19319 | -7/Lower Caves | Encountered a Warlord checkpoint 19474 | -7/Lower Caves | Learned Factory garrison access intel 19574 | -7/Lower Caves | Discovered new exit (range 9) 19581 | -7/Lower Caves | Identified exit to Zion 19587 | -7/Lower Caves | Learned location of Extension (-6) 20270 | -7/Lower Caves | Entered Zion 20401 | -7/Zion | Discovered new exit (range 10) 20412 | -7/Zion | Identified exit to Proximity Caves 20538 | -7/Zion | Learned Factory emergency access door positions 20912 | -7/Zion | Found Prototype Device 20912 | -7/Zion | Identified Bomb Factory No. 2 21311 | -7/Zion | Given A8's code to call for help 21585 | -7/Zion | Found Prototype Device 21585 | -7/Zion | Identified Mobile Refinery Mk. CCLXVII 22078 | -7/Zion | Found Prototype Processor 22078 | -7/Zion | Identified Spectral Analyzer 22080 | -7/Zion | Found Prototype Processor 22080 | -7/Zion | Identified Exp. Target Analyzer 22082 | -7/Zion | Found Exp. Target Analyzer 22096 | -7/Zion | Found Prototype Processor 22096 | -7/Zion | Identified Exp. Core Analyzer 22101 | -7/Zion | Found Prototype Processor 22101 | -7/Zion | Identified Exp. Armor Integrity Analyzer 22298 | -7/Zion | Enhanced Grunt warped into view, answering call for help 22298 | -7/Zion | Enhanced Grunt warped into view, answering call for help 22624 | -7/Zion | Gained Derelict followers 23246 | -7/Zion | Attacked by Zionites 23647 | -7/Zion | Allies destroyed Imprinter 23656 | -7/Zion | Extracted access codes from Imprinter's data core 23728 | -7/Zion | AD-0RF came to Zion's defense 23807 | -7/Zion | Destroyed AD-0RF 23828 | -7/Zion | Lost 4 parts (2n1u1w) 23954 | -7/Zion | Found Exp. Thermal Shield 23963 | -7/Zion | Found Prototype Special Weapon 23963 | -7/Zion | Identified AD-0RF's Magmablaster 23986 | -7/Zion | Found Prototype Processor 24356 | -7/Zion | Opened final containment barrier to the Deep Caves 24536 | -7/Zion | Discovered new exit (range 3) 24536 | -7/Zion | Saw the warning signs outside the Deep Caves entrance 24538 | -7/Zion | Identified exit to Deep Caves 24540 | -7/Zion | Entered Deep Caves 24901 | -7/Deep Caves | Z-Facility disabled 25167 | -7/Deep Caves | Found Prototype Protection 25167 | -7/Deep Caves | Identified Zio. Weapon Casing 25170 | -7/Deep Caves | Found Zio. Weapon Casing 25179 | -7/Deep Caves | Found Zio. Weapon Casing 25359 | -7/Deep Caves | Found Prototype Protection 25405 | -7/Deep Caves | Build established: Scavenger-Mutant 25416 | -7/Deep Caves | Found Zio. Weapon Casing 25435 | -7/Deep Caves | Identified Zio. Heavy Carapace 26095 | -7/Deep Caves | Discovered new exit (range 14) 26123 | -7/Deep Caves | Identified exit to Proximity Caves 26227 | -7/Deep Caves | Exposed GOLEM chamber 26241 | -7/Deep Caves | Destroyed as-71757 26563 | -7/Deep Caves | Destroyed as-48044 26679 | -7/Deep Caves | Triggered Deep Caves wall 26679 | -7/Deep Caves | Spotted AS-73551 26679 | -7/Deep Caves | Spotted AS-79085 26690 | -7/Deep Caves | Destroyed AS-79085 26704 | -7/Deep Caves | Destroyed AS-73551 26709 | -7/Deep Caves | Triggered Deep Caves wall 26717 | -7/Deep Caves | Destroyed 35 combat bots 26765 | -7/Deep Caves | Found GOLEM Unit 26789 | -7/Deep Caves | Found Prototype Processor 27440 | -7/Deep Caves | Build established: Hauler-Mutant 27809 | -7/Deep Caves | Identified 0b10 Alert Chip 27829 | -7/Deep Caves | Found GOLEM Unit 28068 | -7/Deep Caves | Entered Proximity Caves 28070 | -6/Proximity Caves | Attracted the attention of an 0b10 checkpoint 28364 | -6/Proximity Caves | Discovered exit to Factory (range 15) 28444 | -6/Proximity Caves | Entered Factory 28444 | -6/Factory | Evolved 2 slots: Utility x2 28446 | -6/Factory | Loaded intel: 4 garrison access locations 28528 | -6/Factory | Garrison activated, responded to threat 28588 | -6/Factory | Destroyed 8 combat bots 28862 | -6/Factory | Discovered new exit (range 11) 28893 | -6/Factory | Identified exit to Factory 28936 | -6/Factory | Garrison activated, responded to threat 29111 | -6/Factory | Lost 3 parts (3u) 29379 | -6/Factory | Identified Exp. Targeting Computer 29456 | -6/Factory | Sucked down chute 29456 | -6/Factory | Entered Waste 29457 | -6/Waste | Met a frightened Derelict 29475 | -6/Waste | Spotted C-40 Crusher 29481 | -6/Waste | Spotted C-40 Crusher 29492 | -6/Waste | Discovered new exit (range 43) 29500 | -6/Waste | Spotted C-40 Crusher 29547 | -6/Waste | Crushed by falling debris 29568 | -6/Waste | Spotted C-40 Crusher 29582 | -6/Waste | Spotted C-40 Crusher 29612 | -6/Waste | Crushed by falling debris 29660 | -6/Waste | Entered Factory 30086 | -6/Factory | Build established: Scavenger-Mutant 30286 | -6/Factory | Crushed by falling debris 30424 | -6/Factory | Lost 4 parts (2u2w) 31023 | -6/Factory | Core integrity fell below 50% 31077 | -6/Factory | Discovered exit to Factory (range 8) 31440 | -6/Factory | Spotted B-75 Beast 31583 | -6/Factory | Fabricated Hrd. Heavy Armor Plating? 32053 | -6/Factory | Discovered exit to Factory (range 4) 32091 | -6/Factory | Build established: Hauler-Mutant 32117 | -6/Factory | Found Hvy. Reflective Plating 32263 | -6/Factory | Destroyed B-75 Beast 32331 | -6/Factory | Discovered new exit (range 8) 32337 | -6/Factory | Identified exit to Extension 32530 | -6/Factory | Repaired Lrg. Storage Unit 32558 | -6/Factory | Repaired Lrg. Storage Unit 32604 | -6/Factory | Repaired Hrd. Heavy Armor Plating 32810 | -6/Factory | First assault squad dispatched 32883 | -6/Factory | Fabricated F-cell Engine? 33258 | -6/Factory | System corruption reached 10% 33262 | -6/Factory | Crushed by falling debris 33293 | -6/Factory | Lost 8 parts (1p2n4u1w) 33296 | -6/Factory | Destroyed 9 combat bots 33461 | -6/Factory | Identified exit to Lower Caves 33523 | -6/Factory | Entered Lower Caves 34133 | -6/Lower Caves | Spotted B-75 Beast 34289 | -6/Lower Caves | Destroyed B-75 Beast 34342 | -6/Lower Caves | Learned Factory terminal intel 34508 | -6/Lower Caves | Attracted the attention of an 0b10 checkpoint 34510 | -6/Lower Caves | Core integrity fell below 20% 34642 | -6/Lower Caves | Discovered new exit (range 5) 34648 | -6/Lower Caves | Identified exit to Lower Caves 34726 | -6/Lower Caves | Entered another Lower Caves area 34745 | -6/Lower Caves | Discovered exit to Factory (range 6) 34988 | -6/Lower Caves | Attracted the attention of an 0b10 outpost 35081 | -6/Lower Caves | Attracted the attention of an 0b10 checkpoint 35094 | -6/Lower Caves | Destroyed by S-27 Virus with Autogun Last Messages --------------- 35064_ Mace self-destruct mechanism malfunctions. 35065_ Unknown Flight Unit fries itself beyond repair. 35065_ Lgt. Nuclear Core self-destruct mechanism malfunctions. 35068_ Autogun fries itself beyond repair. 35068_ Force Field destroyed. 35069_ S-27 Virus misfires. 35070_ Autogun self-destruct mechanism malfunctions. 35071_ Unknown Flight Unit self-destruct mechanism malfunctions. 35072_ S-27 Virus IFF system glitched. 35077_ S-27 Virus system terminally corrupted. 35077_ Unknown Flight Unit fried. 35081_ Y-54 Guardian: "INTERCEPTING UNREGISTERED DERELICT." 35085_ Proton Missile Launcher destroyed. 35085_ Wheel destroyed. 35087_ Autogun self-destruct mechanism malfunctions. 35091_ Imp. Medium Treads destroyed. 35093_ Adv. Weight Redist. System destroyed. 35093_ Critical hit. 35093_ F-cell Engine destroyed. 35094_ Coil Gun destroyed. Map ----- +----------------------------------------------------+ | ????????????????????# ??????????????????????????? | | ????????????????????# ??????????????????????????# | | ????????????????????# ??????????####???????????# | | ????????????????????# ?????????? ##?????????? | | ????????????????????# ????????? ##?????????# | | ????????????????????# ?????????# ####??????# | | ????????????????????# ?????????# #?###### | | ???????????????#???## ######??## ### | | ???????????????# ### #### | | ??????????????## | | ??????????????# = ## | | ????????????????# % ## | | ????????????????# ## #?# | | ????????????????+ ### #?# #??# | | ????????????????# ?## ### #?### | | ????????????????# ## %[ =% #?## | | ?????????????????## %%/ = ### | | ?????????????????# i [%!%=% | | ?????????????????# # =%* =%* | | ?????????????????# ##### = | | ?????????????????## s g##???## ## ### | | ??????????????????### #####?##### ##?#### | | ????????????????????## b ###???# ##?????# | | ?????????????????????## l #??# #??????# | | ??????????????????????## ## #?## ????? | | ???????????????????????##@ #?## #?### ???? ## | | ????????????????????????# #???? #???? #??? ?? | | ????????????????????????# #????? #???? ?? ??? | | ???????????????????????? #?????? #???? ???? | | ???????????????????????? #????????????? ##"???? | | ????????????????????????####????????????? #?????? | | ????????????????????????????????????????? #?????? | | ?????????????????????????????????????????? #?????? | | ?????????????????????????????????????????????????? | | ?????????????????????????????????????????????????? | | ?????????????????????????????????????????????????? | | ?????????????????????????????????????????????????? | | ?????????????????????????????????????????????????? | | ?????????????????????????????????????????????????? | | ?????????????????????????????????????????????????? | | ?????????????????????????????????????????????????? | | ?????????????????????????????????????????????????? | | ?????????????????????????????????????????????????? | | ?????????????????????????????????????????????????? | | ?????????????????????????????????????????????????? | | ?????????????????????????????????????????????????? | | ?????????????????????????????????????????????????? | | ?????????????????????????????????????????????????? | | | | | +----------------------------------------------------+ Best States ------------- Heat Dissipation 124 Coolant Potential 120 Energy Generation 21 Energy Capacity 2325 Matter Stores 408 Matter Capacity 450 Sight Range 16 Robot Scan Range 20 Terrain Scan Density 10 Additional Mass Support 27 Armor Coverage 2700 Resistance: TH 30 Resistance: EM 90 Weapon Shielding 100 Phase Shifting 5 Evasion (%) 50 Target Analysis 12 Core Analysis 15 Armor Integrity Analysis 90 Recoil Reduction 2 Offensive Hacking 20 Item Schematics ----------------- Lrn. Tractor Beam | -7/Factory | Scanalyzed Adv. Weight Redist. System | -7/Factory | Scanalyzed Hrd. Heavy Armor Plating | -7/Factory | Scanalyzed Imp. Armor Integrity Analyzer | -7/Factory | Hacked Adv. Armor Integrity Analyzer | -6/Factory | Hacked Exp. Targeting Computer | -6/Factory | Scanalyzed F-cell Engine | -6/Factory | Scanalyzed Lrg. Storage Unit | -6/Factory | Scanalyzed Robot Schematics ------------------ None Fabricated ------------ Imp. Armor Integrity Analyzer | x1 | -7/Factory Hrd. Heavy Armor Plating | x1 | -6/Factory F-cell Engine | x1 | -6/Factory Alien Tech Used ----------------- None Achievements -------------- None Challenges ------------ None Game ------ Seed ArcStormLaser Manual? 0 Play Time 04:55:25 Cumulative 1059.7 hours Start 2020.06.27 @ 18:49:29 End 2020.06.28 @ 01:26:32 Sessions 1 Manual Loads 0 Difficulty Rogue Special Mode None Game No. 402 Rogue 402 Adventurer 0 Explorer 0 Win Type - Total 25 Types 13/1/7/0/0/0/4 Lore% 96 Gallery% 98 Achievement% 83 Wizard Run 0 Options --------- ASCII 0 Keyboard 0 Movement Vi Keybinds 0 Fullscreen 0 Font 12/Crisp Map View 76x50 Tactical HUD 1 Map Filters NONE Filters NONE Steam 1 RUN: 4f49ef56-b5a0-4cdd-b519-7e241aff90d2